[Event "Wuerttemberg Rapid Teams 2024"]
[Site "B?blingen, Germany"]
[Date "2024.04.13"]
[Round "5.9"]
[White "Kabisch, Thilo"]
[Black "Gabriel, Robert"]
[Result "1-0"]
[ECO "B13"]
[WhiteElo "2228"]
[BlackElo "2161"]
[Annotator "RC"]
[PlyCount "127"]
[EventDate "2024.04.13"]
[EventType "team-tourn"]
[SourceTitle "playchess.com"]
[Source "ChessBase"]
[SourceQuality "1"]
[TimeControl "900+5"]

1. e4 {[%emt 0:00:01]} c6 {[%emt 0:00:07]} 2. d4 {[%emt 0:00:02]} d5 {[%emt 0:00:04]} 3. exd5 {[%emt 0:00:02]} cxd5 {[%emt 0:00:03]} 4. c4 {[%emt 0:00:01]} Nf6 {[%emt 0:00:13]} 5. Nc3 {[%emt 0:00:02]} Nc6 {[%emt 0:01:25]} 6. Bf4 {[%emt 0:00:30]} a6 {[%emt 0:00:51]} 7. c5 {[%emt 0:00:24]} g6 {[%emt 0:00:27]} 8. Na4 {[%emt 0:00:34]} Bg7 {[%emt 0:00:32]} 9. Nb6 {[%emt 0:00:09]} Nh5 {[%emt 0:00:33]} 10. Be3 {[%emt 0:00:49]} Rb8 {[%emt 0:00:10]} 11. Be2 {[%emt 0:00:05]} Qc7 {[%emt 0:02:02]} 12. Bf3 {[%emt 0:03:11]} Nf6 {[%emt 0:00:50]} 13. Ne2 {[%emt 0:00:55]} Bg4 {[%emt 0:00:50]} 14. Bxg4 {[%emt 0:01:03]} Nxg4 {[%emt 0:00:04]} 15. Nxd5 {[%emt 0:00:19]} Qa5+ {[%emt 0:00:35]} 16. Bd2 {[%emt 0:02:32]} Qd8 {[%emt 0:00:09]} 17. Ne3 {[%emt 0:00:02]} Nxe3 {[%emt 0:00:23]} 18. Bxe3 {[%emt 0:00:14]} e6 {[%emt 0:00:08]} 19. O-O {[%emt 0:00:07]} O-O {[%emt 0:00:05]} 20. a3 {[%emt 0:00:12]} Ne7 {[%emt 0:00:16]} 21. Bf4 {[%emt 0:00:03]} Rc8 {[%emt 0:00:04]} 22. Rc1 {[%emt 0:00:06]} Nd5 {[%emt 0:00:04]} 23. Bd6 {[%emt 0:00:03]} Re8 {[%emt 0:00:04]} 24. b4 {[%emt 0:00:03]} Qd7 {[%emt 0:00:15]} 25. Nc3 {[%emt 0:00:09]} Nxc3 {[%emt 0:00:38]} 26. Rxc3 {[%emt 0:00:03]} b5 {[%emt 0:00:28]} 27. Rd3 {[%emt 0:00:03]} h5 {[%emt 0:00:15]} 28. h3 {[%emt 0:00:01]} Qb7 {[%emt 0:00:12]} 29. d5 {[%emt 0:00:04]} exd5 {[%emt 0:00:03]} 30. Rxd5 {[%emt 0:00:02]} Rcd8 {[%emt 0:00:17]} 31. Qf3 {[%emt 0:00:07]} Qc8 {[%emt 0:00:29]} 32. Rfd1 {[%emt 0:00:04]} Re6 {[%emt 0:00:19]} 33. Bg3 {[%emt 0:00:20]} Rxd5 {[%emt 0:00:06]} 34. Qxd5 {[%emt 0:00:06]} Bb2 {[%emt 0:00:20]} 35. Qd8+ {[%emt 0:00:19]} Re8 {[%emt 0:00:33]} 36. Qxc8 {[%emt 0:00:15]} Rxc8 {[%emt 0:00:02]} 37. Rd3 {[%emt 0:00:03]} Rc6 {[%emt 0:00:59]} 38. Bf4 {[%emt 0:00:10]} f6 {[%emt 0:00:12]} 39. Rb3 {[%emt 0:00:03]} Bd4 {[%emt 0:00:11]} 40. Bd6 {[%emt 0:00:03]} Kf7 {[%emt 0:00:06]} 41. Kf1 {[%emt 0:00:03]} Ke6 {[%emt 0:00:05]} 42. h4 {[%emt 0:00:17]} Rc8 {[%emt 0:00:27]} 43. Rg3 {[%emt 0:00:12]} Kf5 {[%emt 0:00:25]} 44. Rd3 {[%emt 0:00:07]} Bb2 {[%emt 0:00:12]} 45. f3 {[%emt 0:00:07]} g5 {[%emt 0:00:07]} 46. hxg5 {[%emt 0:00:10]} fxg5 {[%emt 0:00:03]} 47. Rd5+ {[%emt 0:00:03]} Kg6 {[%emt 0:00:18]} 48. Rd3 {[%emt 0:00:05]} g4 {[%emt 0:00:10]} 49. Kf2 {[%emt 0:00:10]} gxf3 {[%emt 0:00:04]} 50. gxf3 {[%emt 0:00:02]} h4 {[%emt 0:00:12]} 51. Bh2 {[%emt 0:00:08]} a5 {[%emt 0:01:16]} 52. Rd6+ {[%emt 0:00:12]} Kf5 {[%emt 0:00:03]} 53. Rb6 {[%emt 0:01:02]} axb4 {[%emt 0:00:07]} 54. axb4 {[%emt 0:00:02]} Bd4+ {[%emt 0:00:08]} 55. Kg2 {[%emt 0:00:26]} Rg8+ {[%emt 0:00:24]} 56. Kh3 {[%emt 0:00:01]} Be5 {[%emt 0:00:08]} 57. Rxb5 {[%emt 0:00:24]} Bxh2 {[%emt 0:00:04]} 58. Kxh2 {[%emt 0:00:01]} Kf4 {[%emt 0:00:11]} 59. c6 {[%emt 0:00:02]} Rc8 {[%emt 0:00:04]} 60. Rc5 {[%emt 0:00:03]} Kxf3 {[%emt 0:00:02]} 61. b5 {[%emt 0:00:01]} Ra8 {[%emt 0:00:05]} 62. Rc3+ {[%emt 0:00:04]} Kg4 {[%emt 0:00:02]} 63. c7 {[%emt 0:00:05]} Ra2+ {[%emt 0:00:02]} 64. Kg1 {[%emt 0:00:01]} 1-0

[Event "Wuerttemberg Rapid Teams 2024"]
[Site "B?blingen, Germany"]
[Date "2024.04.13"]
[Round "5.10"]
[White "Gabriel, Josef"]
[Black "Trachtmann, Mark"]
[Result "0-1"]
[ECO "D85"]
[WhiteElo "1997"]
[BlackElo "2203"]
[Annotator "RC"]
[PlyCount "120"]
[EventDate "2024.04.13"]
[EventType "team-tourn"]
[SourceTitle "playchess.com"]
[Source "ChessBase"]
[SourceQuality "1"]
[TimeControl "900+5"]

1. d4 {[%emt 0:00:02]} Nf6 {[%emt 0:00:01]} 2. c4 {[%emt 0:00:02]} g6 {[%emt 0:00:03]} 3. Nc3 {[%emt 0:00:01]} d5 {[%emt 0:00:03]} 4. cxd5 {[%emt 0:00:12]} Nxd5 {[%emt 0:00:03]} 5. e4 {[%emt 0:00:01]} Nxc3 {[%emt 0:00:05]} 6. bxc3 {[%emt 0:00:01]} Bg7 {[%emt 0:00:05]} 7. Nf3 {[%emt 0:00:02]} c5 {[%emt 0:00:07]} 8. Be2 {[%emt 0:00:16]} Nc6 {[%emt 0:00:29]} 9. Be3 {[%emt 0:00:18]} Bg4 {[%emt 0:00:09]} 10. e5 {[%emt 0:00:14]} O-O {[%emt 0:00:09]} 11. O-O {[%emt 0:00:01]} Rc8 {[%emt 0:00:25]} 12. Rb1 {[%emt 0:00:48]} cxd4 {[%emt 0:01:18]} 13. cxd4 {[%emt 0:00:04]} Qd7 {[%emt 0:00:26]} 14. h3 {[%emt 0:00:39]} Be6 {[%emt 0:00:10]} 15. a3 {[%emt 0:00:09]} Rfd8 {[%emt 0:00:19]} 16. Bb5 {[%emt 0:00:17]} a6 {[%emt 0:00:28]} 17. Bxc6 {[%emt 0:00:03]} Rxc6 {[%emt 0:00:27]} 18. Ng5 {[%emt 0:00:51]} Bd5 {[%emt 0:00:05]} 19. Qg4 {[%emt 0:00:04]} Qxg4 {[%emt 0:01:20]} 20. hxg4 {[%emt 0:00:01]} h6 {[%emt 0:00:20]} 21. Nh3 {[%emt 0:00:03]} Rc3 {[%emt 0:00:25]} 22. Nf4 {[%emt 0:00:25]} Bc6 {[%emt 0:00:28]} 23. Ra1 {[%emt 0:01:42]} e6 {[%emt 0:01:00]} 24. Rfc1 {[%emt 0:00:04]} Rxc1+ {[%emt 0:00:07]} 25. Rxc1 {[%emt 0:00:02]} Bf8 {[%emt 0:00:06]} 26. Rc3 {[%emt 0:00:07]} Kh7 {[%emt 0:00:20]} 27. Nd3 {[%emt 0:00:10]} g5 {[%emt 0:00:31]} 28. Nc5 {[%emt 0:00:07]} Bd5 {[%emt 0:00:14]} 29. Na4 {[%emt 0:00:23]} Kg6 {[%emt 0:00:44]} 30. Nb6 {[%emt 0:00:16]} Bc6 {[%emt 0:00:05]} 31. Kh2 {[%emt 0:01:26]} h5 {[%emt 0:00:31]} 32. gxh5+ {[%emt 0:00:07]} Kxh5 {[%emt 0:00:01]} 33. Kg3 {[%emt 0:00:15]} Kg6 {[%emt 0:00:13]} 34. f3 {[%emt 0:00:53]} Be7 {[%emt 0:00:22]} 35. Nc4 {[%emt 0:00:21]} f5 {[%emt 0:00:28]} 36. exf6 {[%emt 0:00:23]} Bxf6 {[%emt 0:00:01]} 37. Ne5+ {[%emt 0:00:21]} Bxe5+ {[%emt 0:00:05]} 38. dxe5 {[%emt 0:00:01]} Rd5 {[%emt 0:00:20]} 39. Rc5 {[%emt 0:00:02]} Rd3 {[%emt 0:00:37]} 40. Bc1 {[%emt 0:00:05]} Kf5 {[%emt 0:00:04]} 41. Kf2 {[%emt 0:02:21]} g4 {[%emt 0:01:00]} 42. fxg4+ {[%emt 0:00:14]} Kxg4 {[%emt 0:00:02]} 43. Rc2 {[%emt 0:00:07]} Kf5 {[%emt 0:00:09]} 44. Bb2 {[%emt 0:00:02]} Rb3 {[%emt 0:00:17]} 45. Rd2 {[%emt 0:00:42]} Bd5 {[%emt 0:00:11]} 46. Kg1 {[%emt 0:01:14]} b5 {[%emt 0:00:15]} 47. Rf2+ {[%emt 0:00:29]} Kg4 {[%emt 0:00:19]} 48. Kh2 {[%emt 0:00:09]} a5 {[%emt 0:00:12]} 49. Bc1 {[%emt 0:00:12]} Rc3 {[%emt 0:00:27]} 50. Bb2 {[%emt 0:01:28]} Rc7 {[%emt 0:00:12]} 51. Bd4 {[%emt 0:00:13]} Rh7+ {[%emt 0:00:16]} 52. Kg1 {[%emt 0:00:01]} b4 {[%emt 0:00:08]} 53. axb4 {[%emt 0:00:05]} axb4 {[%emt 0:00:01]} 54. Rf8 {[%emt 0:00:33]} Rc7 {[%emt 0:00:12]} 55. Kh2 {[%emt 0:00:14]} Rc2 {[%emt 0:00:12]} 56. Rg8+ {[%emt 0:00:03]} Kf5 {[%emt 0:00:02]} 57. Kh3 {[%emt 0:00:04]} b3 {[%emt 0:00:50]} 58. g3 {[%emt 0:00:08]} Rc1 {[%emt 0:00:16]} 59. Rf8+ {[%emt 0:00:10]} Ke4 {[%emt 0:00:03]} 60. Rf4+ {[%emt 0:00:05]} Kd3 {[%emt 0:01:47]} 0-1

[Event "Wuerttemberg Rapid Teams 2024"]
[Site "B?blingen, Germany"]
[Date "2024.04.13"]
[Round "5.11"]
[White "Krockenberger, Martin"]
[Black "Aksenov, Pavel"]
[Result "1-0"]
[ECO "D07"]
[WhiteElo "2125"]
[BlackElo "2045"]
[Annotator "RC"]
[PlyCount "123"]
[EventDate "2024.04.13"]
[EventType "team-tourn"]
[SourceTitle "playchess.com"]
[Source "ChessBase"]
[SourceQuality "1"]
[TimeControl "900+5"]

1. d4 {[%emt 0:00:01]} d5 {[%emt 0:00:03]} 2. c4 {[%emt 0:00:02]} Nc6 {[%emt 0:00:02]} 3. Nc3 {[%emt 0:00:21]} dxc4 {[%emt 0:00:07]} 4. Nf3 {[%emt 0:00:06]} Nf6 {[%emt 0:01:39]} 5. d5 {[%emt 0:00:15]} Na5 {[%emt 0:00:44]} 6. Qa4+ {[%emt 0:01:19]} c6 {[%emt 0:00:04]} 7. b4 {[%emt 0:00:14]} b5 {[%emt 0:03:15]} 8. Qxa5 {[%emt 0:00:06]} Qxa5 {[%emt 0:00:10]} 9. bxa5 {[%emt 0:00:01]} b4 {[%emt 0:00:07]} 10. Nd1 {[%emt 0:01:19]} cxd5 {[%emt 0:00:14]} 11. Be3 {[%emt 0:00:51]} e6 {[%emt 0:00:22]} 12. g3 {[%emt 0:01:03]} Ng4 {[%emt 0:00:43]} 13. Bd4 {[%emt 0:00:04]} f6 {[%emt 0:00:17]} 14. h3 {[%emt 0:01:17]} Nh6 {[%emt 0:00:05]} 15. Bg2 {[%emt 0:00:30]} Nf5 {[%emt 0:00:26]} 16. O-O {[%emt 0:01:06]} Bb7 {[%emt 0:02:59]} 17. a3 {[%emt 0:03:40]} e5 {[%emt 0:00:40]} 18. Bxe5 {[%emt 0:00:36]} fxe5 {[%emt 0:00:03]} 19. Nxe5 {[%emt 0:00:01]} Rb8 {[%emt 0:02:57]} 20. e4 {[%emt 0:00:54]} dxe4 {[%emt 0:01:11]} 21. axb4 {[%emt 0:01:14]} Bxb4 {[%emt 0:00:14]} 22. Rb1 {[%emt 0:00:21]} Bxa5 {[%emt 0:00:16]} 23. Bxe4 {[%emt 0:00:04]} Nd6 {[%emt 0:00:01]} 24. Bxb7 {[%emt 0:00:09]} Rxb7 {[%emt 0:00:02]} 25. Rxb7 {[%emt 0:00:05]} Nxb7 {[%emt 0:00:03]} 26. Nxc4 {[%emt 0:00:12]} Kd7 {[%emt 0:00:08]} 27. Nde3 {[%emt 0:00:12]} Kc6 {[%emt 0:00:09]} 28. Ne5+ {[%emt 0:00:32]} Kb5 {[%emt 0:00:00]} 29. Rb1+ {[%emt 0:00:04]} Bb4 {[%emt 0:00:01]} 30. Nd5 {[%emt 0:00:10]} a5 {[%emt 0:00:02]} 31. Nd3 {[%emt 0:00:03]} Rd8 {[%emt 0:00:06]} 32. N3xb4 {[%emt 0:00:10]} axb4 {[%emt 0:00:01]} 33. Nxb4 {[%emt 0:00:21]} Kc4 {[%emt 0:00:05]} 34. Nc2 {[%emt 0:00:05]} Nc5 {[%emt 0:00:02]} 35. Ne3+ {[%emt 0:00:02]} Kd4 {[%emt 0:00:05]} 36. Rd1+ {[%emt 0:00:09]} Nd3 {[%emt 0:00:01]} 37. Nf5+ {[%emt 0:00:03]} Kc3 {[%emt 0:00:02]} 38. Nxg7 {[%emt 0:00:01]} Kc2 {[%emt 0:00:01]} 39. Ra1 {[%emt 0:00:06]} Rd7 {[%emt 0:00:07]} 40. Nf5 {[%emt 0:00:04]} Rf7 {[%emt 0:00:05]} 41. g4 {[%emt 0:00:08]} h5 {[%emt 0:00:04]} 42. Ra6 {[%emt 0:00:18]} hxg4 {[%emt 0:00:02]} 43. hxg4 {[%emt 0:00:01]} Nf4 {[%emt 0:00:09]} 44. Rd6 {[%emt 0:00:07]} Rh7 {[%emt 0:00:07]} 45. Rh6 {[%emt 0:00:10]} Rd7 {[%emt 0:00:04]} 46. Kh2 {[%emt 0:00:03]} Rd2 {[%emt 0:00:02]} 47. Kg3 {[%emt 0:00:02]} Nd3 {[%emt 0:00:03]} 48. Rc6+ {[%emt 0:00:05]} Kd1 {[%emt 0:00:05]} 49. Ne3+ {[%emt 0:00:02]} Ke2 {[%emt 0:00:01]} 50. Rf6 {[%emt 0:00:06]} Ke1 {[%emt 0:00:09]} 51. Ng2+ {[%emt 0:00:06]} Kf1 {[%emt 0:00:04]} 52. Ne3+ {[%emt 0:00:03]} Ke1 {[%emt 0:00:01]} 53. f4 {[%emt 0:00:05]} Re2 {[%emt 0:00:17]} 54. Nd5 {[%emt 0:00:05]} Kf1 {[%emt 0:00:16]} 55. g5 {[%emt 0:00:02]} Rg2+ {[%emt 0:00:03]} 56. Kh4 {[%emt 0:00:05]} Rh2+ {[%emt 0:00:06]} 57. Kg4 {[%emt 0:00:03]} Kf2 {[%emt 0:00:09]} 58. g6 {[%emt 0:00:02]} Rg2+ {[%emt 0:00:14]} 59. Kf5 {[%emt 0:00:03]} Kf3 {[%emt 0:00:02]} 60. Re6 {[%emt 0:00:04]} Rg1 {[%emt 0:00:18]} 61. Re3+ {[%emt 0:00:02]} Kf2 {[%emt 0:00:00]} 62. Rxd3 {[%emt 0:00:01]} 1-0

[Event "Wuerttemberg Rapid Teams 2024"]
[Site "B?blingen, Germany"]
[Date "2024.04.13"]
[Round "5.12"]
[White "Siegle, Florian"]
[Black "Eisele, Steffen"]
[Result "1-0"]
[ECO "C18"]
[WhiteElo "1912"]
[BlackElo "2230"]
[Annotator "RC"]
[PlyCount "49"]
[EventDate "2024.04.13"]
[EventType "team-tourn"]
[SourceTitle "playchess.com"]
[Source "ChessBase"]
[SourceQuality "1"]
[TimeControl "900+5"]

1. e4 {[%emt 0:00:04]} e6 {[%emt 0:00:01]} 2. d4 {[%emt 0:00:16]} d5 {[%emt 0:00:01]} 3. Nc3 {[%emt 0:00:02]} Bb4 {[%emt 0:00:02]} 4. e5 {[%emt 0:00:02]} c5 {[%emt 0:00:02]} 5. a3 {[%emt 0:00:01]} Bxc3+ {[%emt 0:00:01]} 6. bxc3 {[%emt 0:00:02]} Qc7 {[%emt 0:00:01]} 7. a4 {[%emt 0:00:17]} b6 {[%emt 0:00:52]} 8. Bb5+ {[%emt 0:00:35]} Bd7 {[%emt 0:00:04]} 9. Ne2 {[%emt 0:00:03]} Bxb5 {[%emt 0:02:19]} 10. axb5 {[%emt 0:00:02]} a5 {[%emt 0:00:33]} 11. bxa6 {[%emt 0:00:12]} Rxa6 {[%emt 0:00:01]} 12. Ba3 {[%emt 0:00:23]} Nd7 {[%emt 0:00:50]} 13. O-O {[%emt 0:00:20]} Ne7 {[%emt 0:00:07]} 14. Qd3 {[%emt 0:00:03]} Ra8 {[%emt 0:01:15]} 15. f4 {[%emt 0:02:54]} O-O {[%emt 0:01:06]} 16. Ng3 {[%emt 0:00:38]} g6 {[%emt 0:00:54]} 17. Bb2 {[%emt 0:02:49]} Nc6 {[%emt 0:00:45]} 18. c4 {[%emt 0:01:22]} Nb4 {[%emt 0:01:32]} 19. Qb3 {[%emt 0:00:01]} dxc4 {[%emt 0:00:18]} 20. Qxc4 {[%emt 0:00:07]} Nd5 {[%emt 0:00:18]} 21. Qe2 {[%emt 0:01:08]} Rxa1 {[%emt 0:01:52]} 22. Bxa1 {[%emt 0:00:08]} Ra8 {[%emt 0:00:32]} 23. c4 {[%emt 0:04:02]} Rxa1 {[%emt 0:00:26]} 24. Rxa1 Nxf4 {[%emt 0:00:05]} 25. Qf3 {[%emt 0:00:06]} 1-0

[Event "Wuerttemberg Rapid Teams 2024"]
[Site "B?blingen, Germany"]
[Date "2024.04.13"]
[Round "5.13"]
[White "Fischer, Andre"]
[Black "Kerpe, Andreas"]
[Result "0-1"]
[ECO "A87"]
[WhiteElo "2248"]
[BlackElo "2146"]
[Annotator "RC"]
[PlyCount "70"]
[EventDate "2024.04.13"]
[EventType "team-tourn"]
[SourceTitle "playchess.com"]
[Source "ChessBase"]
[SourceQuality "1"]
[TimeControl "900+5"]

1. Nf3 {[%emt 0:00:02]} f5 {[%emt 0:00:05]} 2. c4 {[%emt 0:00:07]} Nf6 {[%emt 0:00:04]} 3. g3 {[%emt 0:00:01]} d6 {[%emt 0:00:02]} 4. d4 {[%emt 0:00:12]} g6 {[%emt 0:00:02]} 5. Bg2 {[%emt 0:00:01]} Bg7 {[%emt 0:00:01]} 6. O-O {[%emt 0:00:03]} O-O {[%emt 0:00:03]} 7. Nc3 {[%emt 0:00:13]} e6 {[%emt 0:00:06]} 8. Qc2 {[%emt 0:00:44]} Nc6 {[%emt 0:00:03]} 9. b3 {[%emt 0:01:04]} e5 {[%emt 0:02:32]} 10. dxe5 {[%emt 0:00:11]} dxe5 {[%emt 0:00:02]} 11. Ba3 {[%emt 0:00:21]} Re8 {[%emt 0:00:58]} 12. Rad1 {[%emt 0:00:13]} Bd7 {[%emt 0:00:42]} 13. Nd5 {[%emt 0:03:38]} Qc8 {[%emt 0:00:34]} 14. Nxf6+ {[%emt 0:01:20]} Bxf6 {[%emt 0:00:03]} 15. Bb2 {[%emt 0:00:01]} Be6 {[%emt 0:02:36]} 16. Bc3 {[%emt 0:00:46]} Bf7 {[%emt 0:02:41]} 17. Qb2 {[%emt 0:00:02]} Qe6 {[%emt 0:00:22]} 18. e4 {[%emt 0:00:56]} Kg7 {[%emt 0:00:26]} 19. Bh3 {[%emt 0:00:50]} Rad8 {[%emt 0:00:38]} 20. Rd5 {[%emt 0:01:02]} Qe7 {[%emt 0:00:34]} 21. Rxd8 {[%emt 0:00:02]} Rxd8 {[%emt 0:00:01]} 22. exf5 {[%emt 0:00:10]} e4 {[%emt 0:00:02]} 23. Re1 {[%emt 0:01:28]} Rd3 {[%emt 0:00:28]} 24. Bxf6+ {[%emt 0:00:16]} Qxf6 {[%emt 0:00:01]} 25. Qxf6+ {[%emt 0:00:01]} Kxf6 {[%emt 0:00:01]} 26. fxg6 {[%emt 0:00:54]} Bxg6 {[%emt 0:00:40]} 27. Nh4 {[%emt 0:00:03]} Nd4 {[%emt 0:00:11]} 28. Re3 {[%emt 0:01:34]} Rd1+ {[%emt 0:01:03]} 29. Kg2 {[%emt 0:00:02]} Nc2 {[%emt 0:00:24]} 30. Re2 {[%emt 0:00:42]} Ne1+ {[%emt 0:00:05]} 31. Rxe1 {[%emt 0:00:01]} Rxe1 {[%emt 0:00:01]} 32. Nxg6 {[%emt 0:00:01]} hxg6 {[%emt 0:00:01]} 33. Bc8 {[%emt 0:00:01]} b6 {[%emt 0:00:01]} 34. Bb7 {[%emt 0:00:01]} Ke5 {[%emt 0:00:01]} 35. h4 {[%emt 0:00:06]} Ra1 {[%emt 0:00:18]} 0-1

[Event "Wuerttemberg Rapid Teams 2024"]
[Site "B?blingen, Germany"]
[Date "2024.04.13"]
[Round "5.14"]
[White "Vaysberg, Alexander"]
[Black "Weiss, Oliver"]
[Result "1/2-1/2"]
[ECO "C18"]
[WhiteElo "2152"]
[BlackElo "2220"]
[Annotator "RC"]
[PlyCount "96"]
[EventDate "2024.04.13"]
[EventType "team-tourn"]
[SourceTitle "playchess.com"]
[Source "ChessBase"]
[SourceQuality "1"]
[TimeControl "900+5"]

1. e4 {[%emt 0:00:02]} e6 {[%emt 0:00:02]} 2. d4 {[%emt 0:00:02]} d5 {[%emt 0:00:03]} 3. Nc3 {[%emt 0:00:02]} Bb4 {[%emt 0:00:03]} 4. e5 {[%emt 0:00:03]} c5 {[%emt 0:00:21]} 5. a3 {[%emt 0:00:01]} Bxc3+ {[%emt 0:00:02]} 6. bxc3 {[%emt 0:00:02]} Nc6 {[%emt 0:00:02]} 7. Qg4 {[%emt 0:00:22]} g6 {[%emt 0:00:18]} 8. h4 {[%emt 0:00:40]} Qa5 {[%emt 0:00:15]} 9. Bd2 {[%emt 0:00:29]} Qa4 {[%emt 0:00:31]} 10. Rh3 {[%emt 0:01:44]} h6 {[%emt 0:01:09]} 11. h5 {[%emt 0:03:40]} g5 {[%emt 0:00:11]} 12. f4 {[%emt 0:01:02]} f5 {[%emt 0:00:09]} 13. exf6 {[%emt 0:00:03]} Nxf6 {[%emt 0:00:03]} 14. Qe2 {[%emt 0:00:27]} g4 {[%emt 0:00:20]} 15. Re3 {[%emt 0:00:05]} Bd7 {[%emt 0:01:47]} 16. f5 {[%emt 0:06:23]} cxd4 {[%emt 0:03:30]} 17. Rxe6+ {[%emt 0:00:04]} Kf7 {[%emt 0:00:14]} 18. Rxf6+ {[%emt 0:00:30]} Kxf6 {[%emt 0:00:10]} 19. Qxg4 {[%emt 0:00:03]} Rae8+ {[%emt 0:00:58]} 20. Kd1 {[%emt 0:00:15]} Bxf5 {[%emt 0:00:37]} 21. Qh4+ {[%emt 0:00:09]} Kg7 {[%emt 0:00:28]} 22. Rc1 {[%emt 0:00:04]} Rhf8 {[%emt 0:02:53]} 23. Nf3 {[%emt 0:00:04]} Re4 {[%emt 0:00:15]} 24. Qg3+ {[%emt 0:00:11]} Kh7 {[%emt 0:00:18]} 25. Bd3 {[%emt 0:00:12]} Re6 {[%emt 0:00:41]} 26. Qc7+ {[%emt 0:00:10]} Re7 {[%emt 0:00:02]} 27. Qf4 {[%emt 0:00:07]} Bxd3 {[%emt 0:00:11]} 28. Qxh6+ {[%emt 0:00:04]} Kg8 {[%emt 0:00:08]} 29. Qg5+ {[%emt 0:00:07]} Rg7 {[%emt 0:00:10]} 30. Qxd5+ {[%emt 0:00:02]} Kh8 {[%emt 0:00:08]} 31. h6 {[%emt 0:00:04]} Rxg2 {[%emt 0:00:13]} 32. Nxd4 {[%emt 0:00:17]} Rg1+ {[%emt 0:00:24]} 33. Be1 {[%emt 0:00:02]} Nxd4 {[%emt 0:00:27]} 34. Qe5+ {[%emt 0:00:06]} Kh7 {[%emt 0:00:09]} 35. Qe7+ {[%emt 0:00:04]} Kg6 {[%emt 0:00:25]} 36. Qxf8 {[%emt 0:00:03]} Bxc2+ {[%emt 0:00:02]} 37. Kd2 {[%emt 0:00:02]} Rg2+ {[%emt 0:00:05]} 38. Bf2 {[%emt 0:00:09]} Nb3+ {[%emt 0:00:03]} 39. Kxc2 {[%emt 0:00:03]} Nxc1+ {[%emt 0:00:02]} 40. Kxc1 {[%emt 0:00:02]} Rxf2 {[%emt 0:00:19]} 41. Qxf2 {[%emt 0:00:04]} Kxh6 {[%emt 0:00:01]} 42. Qe3+ {[%emt 0:00:06]} Kg6 {[%emt 0:00:04]} 43. Qg3+ {[%emt 0:00:04]} Kf5 {[%emt 0:00:05]} 44. Qf3+ {[%emt 0:00:02]} Ke5 {[%emt 0:00:03]} 45. Qxb7 {[%emt 0:00:03]} Qxa3+ {[%emt 0:00:01]} 46. Kc2 {[%emt 0:00:02]} Qa2+ {[%emt 0:00:02]} 47. Kd3 {[%emt 0:00:05]} Qd5+ {[%emt 0:00:05]} 48. Qxd5+ {[%emt 0:00:02]} Kxd5 {[%emt 0:00:00]} 1/2-1/2

[Event "Wuerttemberg Rapid Teams 2024"]
[Site "B?blingen, Germany"]
[Date "2024.04.13"]
[Round "5.15"]
[White "Wunder, Niklas"]
[Black "Jerie, Sven"]
[Result "1-0"]
[ECO "C55"]
[WhiteElo "2071"]
[BlackElo "2018"]
[Annotator "NA RC"]
[PlyCount "101"]
[EventDate "2024.04.13"]
[EventType "team-tourn"]
[SourceTitle "playchess.com"]
[Source "ChessBase"]
[SourceQuality "1"]
[TimeControl "900+5"]

1. e4 {[%emt 0:00:02]} e5 {[%emt 0:00:01]} 2. Nf3 {[%emt 0:00:01]} Nc6 {[%emt 0:00:02]} 3. Bc4 {[%emt 0:00:03]} Nf6 {[%emt 0:00:01]} 4. d3 {[%emt 0:00:04]} Be7 {[%emt 0:00:05]} 5. O-O {[%emt 0:00:03]} O-O {[%emt 0:00:08]} 6. Nc3 {[%emt 0:00:10]} d6 {[%emt 0:00:13]} 7. a4 {[%emt 0:00:03]} Na5 {[%emt 0:01:07]} 8. Ba2 {[%emt 0:00:05]} c5 {[%emt 0:00:03]} 9. Bg5 {[%emt 0:01:03]} Be6 {[%emt 0:00:38]} 10. Bxf6 {[%emt 0:00:08]} Bxf6 {[%emt 0:00:03]} 11. Nd5 {[%emt 0:00:06]} Nc6 {[%emt 0:00:33]} 12. c3 {[%emt 0:00:29]} Rb8 {[%emt 0:00:26]} 13. h3 {[%emt 0:00:59]} Re8 {[%emt 0:00:44]} 14. Qd2 {[%emt 0:00:12]} h6 {[%emt 0:00:08]} 15. Kh2 {[%emt 0:01:19]} b6 {[%emt 0:00:57]} 16. Rac1 {[%emt 0:01:15]} a6 {[%emt 0:00:11]} 17. b4 {[%emt 0:00:39]} b5 {[%emt 0:00:24]} 18. a5 {[%emt 0:00:32]} Be7 {[%emt 0:00:48]} 19. d4 {[%emt 0:00:23]} c4 {[%emt 0:01:21]} 20. Nxe7+ {[%emt 0:00:52]} Nxe7 {[%emt 0:00:11]} 21. dxe5 {[%emt 0:00:29]} dxe5 {[%emt 0:00:06]} 22. Qxd8 {[%emt 0:00:06]} Rbxd8 {[%emt 0:00:12]} 23. Nxe5 {[%emt 0:00:08]} Rd2 {[%emt 0:00:11]} 24. Bb1 {[%emt 0:00:05]} f5 {[%emt 0:01:42]} 25. Nf3 {[%emt 0:00:22]} Rd6 {[%emt 0:00:19]} 26. Rcd1 {[%emt 0:00:55]} Red8 {[%emt 0:00:18]} 27. Rxd6 {[%emt 0:01:03]} Rxd6 {[%emt 0:00:01]} 28. Nd4 {[%emt 0:01:24]} fxe4 {[%emt 0:00:07]} 29. Bxe4 {[%emt 0:00:02]} Bd5 {[%emt 0:00:08]} 30. f3 {[%emt 0:00:35]} Bxe4 {[%emt 0:00:37]} 31. fxe4 {[%emt 0:00:01]} Nc6 {[%emt 0:00:07]} 32. Nxc6 {[%emt 0:00:12]} Rxc6 {[%emt 0:00:02]} 33. Rd1 {[%emt 0:00:23]} Re6 {[%emt 0:00:03]} 34. Rd4 {[%emt 0:00:07]} Rf6 {[%emt 0:00:40]} 35. e5 {[%emt 0:01:17]} Rf2 {[%emt 0:00:08]} 36. Rd6 {[%emt 0:00:27]} Rc2 {[%emt 0:00:06]} 37. Rxa6 {[%emt 0:00:01]} Rxc3 {[%emt 0:00:01]} 38. Rb6 {[%emt 0:00:10]} Rb3 {[%emt 0:00:33]} 39. Rxb5 {[%emt 0:00:03]} c3 {[%emt 0:00:01]} 40. a6 {[%emt 0:00:30]} c2 {[%emt 0:00:10]} 41. a7 {[%emt 0:00:19]} Ra3 {[%emt 0:00:34]} 42. Ra5 {[%emt 0:00:35]} Rxa5 {[%emt 0:00:39]} 43. bxa5 {[%emt 0:00:01]} c1=Q {[%emt 0:00:02]} 44. a8=Q+ {[%emt 0:00:03]} Kf7 {[%emt 0:00:25]} 45. Qd5+ {[%emt 0:00:11]} Kf8 {[%emt 0:00:25]} 46. Qd6+ {[%emt 0:00:05]} Kg8 {[%emt 0:00:29]} 47. e6 {[%emt 0:00:06]} Qe3 {[%emt 0:00:33]} 48. a6 {[%emt 0:00:07]} Kh7 {[%emt 0:00:08]} 49. e7 {[%emt 0:00:17]} h5 {[%emt 0:00:16]} 50. a7 {[%emt 0:00:18]} Qe4 {[%emt 0:00:05]} 51. Qb8 {[%emt 0:00:15]} 1-0